fUST/lending_fUST_20240111
["ID","MTS","AMOUNT","RATE_DAILY","PERIOD"]
[311111217,1704911444835,-620.00019982,0.00029469,2]
[311111218,1704911444845,-150.8642222,0.0002952,2]
[311111219,1704911444854,-500.0,0.00029589,2]
[311111220,1704911444865,-907.54,0.00029589,2]
[311111221,1704911444874,-500.0,0.00029589,2]
[311111222,1704911444883,-500.0,0.00029589,2]
[311111223,1704911444893,-500.0,0.00029589,2]
[311111224,1704911444903,-500.0,0.00029589,2]
[311111225,1704911444913,-500.0,0.00029589,2]
[311111226,1704911444922,-921.0,0.00029589,2]
[311111227,1704911444931,-500.0,0.00029589,2]
[311111228,1704911444941,-629.76,0.00029589,2]
[311111229,1704911444951,-1303.38,0.00029589,2]
[311111230,1704911444960,-1706.79,0.00029589,2]
[311111231,1704911444969,-2129.51,0.00029589,2]
[311111232,1704911444978,-500.0,0.00029589,2]
[311111233,1704911444987,-1612.24,0.00029589,2]
[311111234,1704911444996,-624.66,0.00029589,2]
[311111235,1704911445006,-500.0,0.00029863,2]
[311111236,1704911445015,-907.54,0.00029863,2]
[311111237,1704911445024,-500.0,0.00029863,2]
[311111238,1704911445033,-500.0,0.00029863,2]
[311111239,1704911445042,-457.61,0.00029863,2]
[311111240,1704911445052,-500.0,0.00029863,2]
[311111241,1704911445061,-500.0,0.00029863,2]
[311111242,1704911445070,-921.0,0.00029863,2]
[311111243,1704911445079,-500.0,0.00029863,2]
[311111244,1704911445089,-1303.38,0.00029863,2]
[311111245,1704911445098,-1706.79,0.00029863,2]
[311111246,1704911445107,-2129.51,0.00029863,2]
[311111247,1704911445118,-500.0,0.00029863,2]
[311111248,1704911445126,-1612.24,0.00029863,2]
[311111249,1704911445136,-624.66,0.00029863,2]
[311111250,1704911445145,-463.38099934,0.0003,4]
[311111251,1704911445154,-236.52252731,0.0003,7]
[311111252,1704911445164,-18048.02930508,0.0003,4]
[311111253,1704911445174,-6973.85683356,0.0003,4]
[311111254,1704911445183,-154.87609912,0.0003,2]
[311111255,1704911445193,-243.77594457,0.0003,4]
[311111256,1704911445203,-399.65900583,0.0003,4]
[311111257,1704911445212,-686.6335406,0.0003,4]
[311111258,1704911445222,-202.0,0.0003,2]
[311111259,1704911445232,-150.0,0.0003004,2]
[311111260,1704911445241,-500.0,0.00030136,2]
[311111261,1704911445251,-907.54,0.00030136,2]
[311111262,1704911445261,-150.0,0.00030136,2]
[311111263,1704911445271,-150.0,0.00030136,2]
[311111264,1704911445280,-213.58238922,0.00030136,2]
[311111265,1704911445291,-232.11960502,0.00030136,2]
[311111266,1704911445301,-500.0,0.00030136,2]
[311111267,1704911445311,-500.0,0.00030136,2]
[311111268,1704911445320,-500.0,0.00030136,2]
[311111269,1704911445330,-921.0,0.00030136,2]
[311111270,1704911445340,-500.0,0.00030136,2]
[311111271,1704911445349,-1303.38,0.00030136,2]
[311111272,1704911445361,-1706.79,0.00030136,2]
[311111273,1704911445372,-2129.51,0.00030136,2]
[311111274,1704911445385,-382.18,0.00030136,2]
[311111275,1704911445395,-1612.24,0.00030136,2]
[311111276,1704911445405,-624.66,0.00030136,2]
[311111277,1704911445414,-232.73546203,0.00030136,2]
[311111278,1704911445423,-500.0,0.00030136,2]
[311111279,1704911445432,-500.0,0.00030136,2]
[311111280,1704911445442,-331.32533185,0.00030136,2]
[311111281,1704911445451,-500.0,0.00030136,2]
[311111282,1704911445460,-543.82779419,0.00030136,2]
[311111283,1704911445470,-502.96551217,0.00030136,2]
[311111284,1704911445479,-500.0,0.00030136,2]
[311111286,1704911445489,-500.0,0.00030136,2]
[311111288,1704911445498,-797.44,0.00030136,2]
[311111289,1704911445508,-500.0,0.00030136,2]
[311111290,1704911445518,-500.0,0.00030136,2]
[311111291,1704911445527,-556.72323517,0.00030136,2]
[311111292,1704911445536,-500.0,0.00030136,2]
[311111293,1704911445546,-500.0,0.00030136,2]
[311111294,1704911445554,-721.74,0.00030136,2]
[311111295,1704911445563,-500.0,0.00030136,2]
[311111297,1704911445572,-500.0,0.00030136,2]
[311111299,1704911445582,-500.0,0.00030136,2]
[311111301,1704911445591,-500.0,0.00030136,2]
[311111303,1704911445600,-500.0,0.00030136,2]
[311111305,1704911445613,-609.65,0.00030136,2]
[311111307,1704911445623,-500.0,0.00030136,2]
[311111310,1704911445632,-971.71,0.00030136,2]
[311111313,1704911445641,-500.0,0.00030136,2]
[311111316,1704911445650,-6197.91,0.00030136,2]
[311111318,1704911445659,-500.0,0.00030136,2]
[311111320,1704911445668,-500.0,0.00030136,2]
[311111321,1704911445677,-500.0,0.00030136,2]
[311111322,1704911445687,-500.0,0.00030136,2]
[311111323,1704911445696,-500.0,0.00030136,2]
[311111324,1704911445705,-704.71,0.00030136,2]
[311111325,1704911445715,-500.0,0.00030136,2]
[311111326,1704911445724,-243.77924832,0.00030136,2]
[311111327,1704911445733,-500.0,0.00030136,2]
[311111328,1704911445742,-500.0,0.00030136,2]
[311111329,1704911445751,-500.0,0.00030136,2]
[311111330,1704911445760,-500.0,0.00030136,2]
[311111331,1704911445769,-500.0,0.00030136,2]
[311111332,1704911445778,-500.0,0.00030136,2]
[311111333,1704911445787,-500.0,0.00030136,2]
[311111334,1704911445796,-500.0,0.00030136,2]
[311111335,1704911445806,-329.27294652,0.00030136,2]
[311111336,1704911445815,-500.0,0.00030136,2]
[311111338,1704911445824,-521.31812588,0.00030136,2]
[311111340,1704911445833,-500.0,0.00030136,2]
[311111341,1704911445842,-500.0,0.00030136,2]
[311111342,1704911445851,-500.0,0.00030136,2]
[311111343,1704911445865,-500.0,0.00030136,2]
[311111344,1704911445874,-500.0,0.00030136,2]
[311111345,1704911445883,-528.03838163,0.00030136,2]
[311111346,1704911445893,-500.0,0.00030136,2]
[311111347,1704911445902,-500.0,0.00030136,2]
[311111348,1704911445911,-500.0,0.00030136,2]
[311111349,1704911445920,-500.0,0.00030136,2]
[311111350,1704911445930,-552.86,0.00030136,2]
[311111352,1704911445939,-585.75,0.00030136,2]
[311111354,1704911445949,-500.0,0.00030136,2]
[311111355,1704911445958,-500.0,0.00030136,2]
[311111356,1704911445967,-500.0,0.00030136,2]
[311111357,1704911445978,-515.81,0.00030136,2]
[311111358,1704911445987,-500.0,0.00030136,2]
[311111359,1704911445996,-1000.0,0.00030136,2]
[311111360,1704911446005,-500.0,0.00030136,2]
[311111361,1704911446015,-500.0,0.00030136,2]
[311111362,1704911446024,-500.0,0.00030136,2]
[311111363,1704911446034,-500.0,0.00030136,2]
[311111364,1704911446043,-245.30792768,0.00030136,2]
[311111365,1704911446053,-500.0,0.00030136,2]
[311111366,1704911446063,-500.0,0.00030136,2]
[311111367,1704911446073,-500.0,0.00030136,2]
[311111368,1704911446082,-500.0,0.00030136,2]
[311111369,1704911446091,-500.0,0.00030136,2]
[311111370,1704911446100,-500.0,0.00030136,2]
[311111371,1704911446109,-500.0,0.00030136,2]
[311111372,1704911446120,-626.26495276,0.00030136,2]
[311111373,1704911446130,-500.0,0.00030136,2]
[311111374,1704911446139,-500.0,0.00030136,2]
[311111375,1704911446148,-500.0,0.00030136,2]
[311111376,1704911446157,-500.0,0.00030136,2]
[311111377,1704911446166,-500.0,0.00030136,2]
[311111378,1704911446176,-506.52051017,0.00030136,2]
[311111379,1704911446186,-503.73609041,0.00030136,2]
[311111380,1704911446198,-15095.22,0.00030136,2]
[311111381,1704911446207,-500.0,0.00030136,5]
[311111382,1704911446216,-501.60366891,0.00030136,2]
[311111383,1704911446225,-161.74440105,0.00030136,2]
[311111384,1704911446234,-500.0,0.00030136,2]
[311111385,1704911446243,-500.0,0.00030136,2]
[311111386,1704911446252,-500.0,0.00030136,2]
[311111387,1704911446262,-500.0,0.00030136,2]
[311111388,1704911446274,-500.0,0.00030136,2]
[311111389,1704911446283,-500.0,0.00030136,2]
[311111390,1704911446292,-157.66665322,0.00030136,2]
[311111391,1704911446310,-8.03892799,0.00030136,2]
[311111392,1704911446318,-500.0,0.00030136,2]
[311111393,1704911446327,-772.21,0.00030136,2]
[311111394,1704911446336,-500.0,0.00030136,2]
[311111395,1704911446346,-500.0,0.00030136,2]
[311111396,1704911446354,-500.0,0.00030136,2]
[311111397,1704911446367,-1812.72,0.00030136,2]
[311111398,1704911446376,-321.05582341,0.00030136,2]
[311111399,1704911446386,-500.0,0.00030136,2]
[311111400,1704911446395,-500.0,0.00030136,2]
[311111401,1704911446405,-5000.0,0.00030137,2]
[311111402,1704911446414,-5000.0,0.00030137,2]
[311111403,1704911446422,-18426.85431454,0.00030137,2]
[311111404,1704911446436,-33316.39548296,0.00030137,2]
[311111405,1704911446445,-155.0,0.00030137,2]
[311111406,1704911446455,-12224.0968102,0.00030156,5]
[311111407,1704911446465,-500.0,0.0003041,2]
[311111408,1704911446474,-907.54,0.0003041,2]
[311111409,1704911446483,-500.0,0.0003041,2]
[311111410,1704911446492,-500.0,0.0003041,2]
[311111411,1704911446501,-500.0,0.0003041,2]
[311111412,1704911446511,-921.0,0.0003041,2]
[311111413,1704911446520,-500.0,0.0003041,2]
[311111414,1704911446529,-1303.38,0.0003041,2]
[311111415,1704911446538,-1706.79,0.0003041,2]
[311111416,1704911446547,-2129.51,0.0003041,2]
[311111417,1704911446556,-1612.24,0.0003041,2]
[311111418,1704911446566,-624.66,0.0003041,2]
[311111419,1704911446575,-500.0,0.0003041,2]
[311111420,1704911446584,-500.0,0.0003041,2]
[311111421,1704911446593,-500.0,0.0003041,2]
[311111422,1704911446602,-797.44,0.0003041,2]
[311111423,1704911446615,-500.0,0.0003041,2]
[311111424,1704911446624,-500.0,0.0003041,2]
[311111425,1704911446633,-500.0,0.0003041,2]
[311111426,1704911446643,-196.88233768,0.0003041,2]
[311111427,1704911446652,-721.74,0.0003041,2]
[311111428,1704911446661,-225.20939701,0.0003041,2]
[311111429,1704911446671,-500.0,0.0003041,2]
[311111430,1704911446681,-500.0,0.0003041,2]
[311111431,1704911446690,-319.32764842,0.0003041,2]
[311111432,1704911446699,-609.65,0.0003041,2]
[311111433,1704911446709,-500.0,0.0003041,2]
[311111434,1704911446719,-971.71,0.0003041,2]
[311111435,1704911446803,-500.0,0.0003041,2]
[311111436,1704911446813,-6197.91,0.0003041,2]
[311111437,1704911446822,-500.0,0.0003041,2]
[311111438,1704911446832,-500.0,0.0003041,2]
[311111439,1704911446841,-500.0,0.0003041,2]
[311111440,1704911446850,-500.0,0.0003041,2]
[311111441,1704911446859,-500.0,0.0003041,2]
[311111442,1704911446870,-704.71,0.0003041,2]
[311111443,1704911446879,-500.0,0.0003041,2]
[311111444,1704911446889,-500.0,0.0003041,2]
[311111445,1704911446900,-500.0,0.0003041,2]
[311111446,1704911446910,-526.50705052,0.0003041,2]
[311111447,1704911446920,-500.0,0.0003041,2]
[311111448,1704911446930,-500.0,0.0003041,2]
[311111449,1704911446939,-500.0,0.0003041,2]
[311111450,1704911446949,-500.0,0.0003041,2]
[311111451,1704911446958,-404.60484323,0.0003041,2]
[311111452,1704911446967,-472.93052492,0.0003041,2]
[311111453,1704911446979,-500.0,0.0003041,2]
[311111454,1704911446988,-500.0,0.0003041,2]
[311111455,1704911446998,-500.0,0.0003041,2]
[311111456,1704911447006,-500.0,0.0003041,2]
[311111457,1704911447016,-500.0,0.0003041,2]
[311111458,1704911447026,-602.12179745,0.0003041,2]
[311111459,1704911447035,-536.45377234,0.0003041,2]
[311111460,1704911447044,-308.24075342,0.0003041,2]
[311111461,1704911447054,-552.86,0.0003041,2]
[311111462,1704911447063,-585.75,0.0003041,2]
[311111463,1704911447072,-500.0,0.0003041,2]
[311111464,1704911447082,-500.0,0.0003041,2]
[311111465,1704911447091,-500.0,0.0003041,2]
[311111466,1704911447101,-515.81,0.0003041,2]
[311111467,1704911447113,-1000.0,0.0003041,2]
[311111468,1704911447123,-500.0,0.0003041,2]
[311111469,1704911447133,-500.0,0.0003041,2]
[311111470,1704911447143,-500.0,0.0003041,2]
[311111471,1704911447153,-374.22929434,0.0003041,2]
[311111472,1704911447162,-500.0,0.0003041,2]
[311111473,1704911447172,-500.0,0.0003041,2]
[311111474,1704911447182,-500.0,0.0003041,2]
[311111475,1704911447191,-500.0,0.0003041,2]
[311111476,1704911447201,-500.0,0.0003041,2]
[311111477,1704911447209,-500.0,0.0003041,2]
[311111478,1704911447219,-500.0,0.0003041,2]
[311111479,1704911447228,-500.0,0.0003041,2]
[311111480,1704911447237,-500.0,0.0003041,2]
[311111481,1704911447247,-500.0,0.0003041,2]
[311111482,1704911447256,-500.0,0.0003041,2]
[311111483,1704911447265,-15095.22,0.0003041,2]
[311111484,1704911447275,-198.57463764,0.0003041,2]
[311111485,1704911447284,-500.0,0.0003041,2]
[311111486,1704911447293,-500.0,0.0003041,2]
[311111487,1704911447302,-500.0,0.0003041,2]
[311111488,1704911447311,-500.0,0.0003041,2]
[311111489,1704911447320,-500.0,0.0003041,2]
[311111490,1704911447330,-627.30552069,0.0003041,2]
[311111491,1704911447339,-772.21,0.0003041,2]
[311111492,1704911447348,-500.0,0.0003041,2]
[311111493,1704911447357,-500.0,0.0003041,2]
[311111494,1704911447369,-1812.72,0.0003041,2]
[311111495,1704911447378,-500.0,0.0003041,2]
[311111496,1704911447387,-500.0,0.0003041,2]
[311111497,1704911447395,-1500.0,0.000305,2]
[311111498,1704911447404,-500.0,0.00030684,2]
[311111499,1704911447414,-907.54,0.00030684,2]
[311111500,1704911447423,-500.0,0.00030684,2]
[311111501,1704911447432,-500.0,0.00030684,2]
[311111502,1704911447442,-500.0,0.00030684,2]
[311111503,1704911447452,-921.0,0.00030684,2]
[311111504,1704911447461,-500.0,0.00030684,2]
[311111505,1704911447470,-1303.38,0.00030684,2]
[311111506,1704911447479,-1706.79,0.00030684,2]
[311111507,1704911447489,-2129.51,0.00030684,2]
[311111508,1704911447499,-1612.24,0.00030684,2]
[311111509,1704911447508,-624.66,0.00030684,2]
[311111510,1704911447518,-500.0,0.00030684,2]
[311111511,1704911447528,-500.0,0.00030684,2]
[311111512,1704911447538,-797.44,0.00030684,2]
[311111513,1704911447547,-500.0,0.00030684,2]
[311111514,1704911447556,-500.0,0.00030684,2]
[311111515,1704911447565,-500.0,0.00030684,2]
[311111516,1704911447574,-721.74,0.00030684,2]
[311111517,1704911447583,-500.0,0.00030684,2]
[311111518,1704911447593,-609.65,0.00030684,2]
[311111519,1704911447602,-500.0,0.00030684,2]
[311111520,1704911447613,-971.71,0.00030684,2]
[311111521,1704911447622,-500.0,0.00030684,2]
[311111522,1704911447631,-6197.91,0.00030684,2]
[311111523,1704911447640,-524.89574781,0.00030684,2]
[311111524,1704911447650,-500.0,0.00030684,2]
[311111525,1704911447659,-500.0,0.00030684,2]
[311111526,1704911447668,-500.0,0.00030684,2]
[311111527,1704911447677,-500.0,0.00030684,2]
[311111528,1704911447686,-704.71,0.00030684,2]
[311111529,1704911447696,-532.11729685,0.00030684,2]
[311111530,1704911447705,-500.0,0.00030684,2]
[311111531,1704911447714,-500.0,0.00030684,2]
[311111532,1704911447723,-500.0,0.00030684,2]
[311111533,1704911447732,-500.0,0.00030684,2]
[311111534,1704911447741,-500.0,0.00030684,2]
[311111535,1704911447751,-500.0,0.00030684,2]
[311111536,1704911447760,-500.0,0.00030684,2]
[311111537,1704911447769,-500.0,0.00030684,2]
[311111538,1704911447778,-500.0,0.00030684,2]
[311111539,1704911447787,-552.86,0.00030684,2]
[311111540,1704911447796,-585.75,0.00030684,2]
[311111541,1704911447806,-500.0,0.00030684,2]
[311111542,1704911447815,-500.0,0.00030684,2]
[311111543,1704911447824,-500.0,0.00030684,2]
[311111544,1704911447834,-515.81,0.00030684,2]
[311111545,1704911447843,-1000.0,0.00030684,2]
[311111546,1704911447852,-296.04111077,0.00030684,2]
[311111547,1704911447863,-573.62,0.00030684,2]
[311111548,1704911447872,-500.0,0.00030684,2]
[311111549,1704911447881,-500.0,0.00030684,2]
[311111550,1704911447890,-500.0,0.00030684,2]
[311111551,1704911447900,-500.0,0.00030684,2]
[311111552,1704911447909,-500.0,0.00030684,2]
[311111553,1704911447918,-619.80948328,0.00030684,2]
[311111554,1704911447927,-361.41001069,0.00030684,2]
[311111555,1704911447937,-500.0,0.00030684,2]
[311111556,1704911447947,-500.0,0.00030684,2]
[311111557,1704911447956,-15095.22,0.00030684,2]
[311111558,1704911447965,-500.0,0.00030684,2]
[311111559,1704911447975,-500.0,0.00030684,2]
[311111560,1704911447985,-500.0,0.00030684,2]
[311111561,1704911447995,-500.0,0.00030684,2]
[311111562,1704911448004,-500.0,0.00030684,2]
[311111563,1704911448014,-772.21,0.00030684,2]
[311111564,1704911448024,-500.0,0.00030684,2]
[311111565,1704911448033,-500.0,0.00030684,2]
[311111566,1704911448042,-1812.72,0.00030684,2]
[311111567,1704911448054,-500.0,0.00030684,2]
[311111568,1704911448063,-500.0,0.00030684,2]
[311111569,1704911448073,-153.0,0.00030853,2]
[311111570,1704911448082,-153.0,0.00030853,2]
[311111571,1704911448092,-153.0,0.00030853,2]
[311111572,1704911448101,-153.0,0.00030853,2]
[311111573,1704911448110,-153.0,0.00030853,2]
[311111574,1704911448120,-8171.97921732,0.00030887,2]
[311111575,1704911448129,-2410.69688061,0.00030887,2]
[311111576,1704911448138,-1000.0,0.00030887,7]
[311111577,1704911448146,-720.25017569,0.00030887,2]
[311111578,1704911448155,-1000.0,0.00030887,7]
[311111579,1704911448164,-1000.0,0.00030887,7]
[311111580,1704911448174,-500.0,0.00030958,2]
[311111581,1704911448183,-907.54,0.00030958,2]
[311111582,1704911448196,-500.0,0.00030958,2]
[311111583,1704911448205,-500.0,0.00030958,2]
[311111584,1704911448215,-425.14006486,0.00030958,2]
[311111585,1704911448224,-921.0,0.00030958,2]
[311111586,1704911448234,-500.0,0.00030958,2]
[311111587,1704911448244,-1303.38,0.00030958,2]
[311111588,1704911448253,-1706.79,0.00030958,2]
[311111589,1704911448263,-2129.51,0.00030958,2]
[311111590,1704911448273,-1612.24,0.00030958,2]
[311111591,1704911448282,-624.66,0.00030958,2]
[311111592,1704911448291,-576.67446224,0.00030958,2]
[311111593,1704911448301,-500.0,0.00030958,2]
[311111594,1704911448311,-797.44,0.00030958,2]
[311111595,1704911448320,-500.0,0.00030958,2]
[311111596,1704911448329,-500.0,0.00030958,2]
[311111597,1704911448338,-721.74,0.00030958,2]
[311111598,1704911448348,-500.0,0.00030958,2]
[311111599,1704911448356,-609.65,0.00030958,2]
[311111600,1704911448369,-500.0,0.00030958,2]
[311111601,1704911448378,-971.71,0.00030958,2]
[311111602,1704911448387,-640.96243566,0.00030958,2]
[311111603,1704911448396,-6197.91,0.00030958,2]
[311111604,1704911448405,-500.0,0.00030958,2]
[311111605,1704911448415,-500.0,0.00030958,2]
[311111606,1704911448423,-500.0,0.00030958,2]
[311111607,1704911448432,-500.0,0.00030958,2]
[311111608,1704911448441,-704.71,0.00030958,2]
[311111609,1704911448451,-500.0,0.00030958,2]
[311111610,1704911448469,-500.0,0.00030958,2]
[311111611,1704911448478,-500.0,0.00030958,2]
[311111612,1704911448487,-500.0,0.00030958,2]
[311111613,1704911448497,-500.0,0.00030958,2]
[311111614,1704911448506,-500.0,0.00030958,2]
[311111615,1704911448515,-500.0,0.00030958,2]
[311111616,1704911448524,-376.22589509,0.00030958,2]
[311111617,1704911448533,-552.86,0.00030958,2]
[311111618,1704911448542,-585.75,0.00030958,2]
[311111619,1704911448551,-500.0,0.00030958,2]
[311111620,1704911448560,-500.0,0.00030958,2]
[311111621,1704911448569,-500.0,0.00030958,2]
[311111622,1704911448650,-515.81,0.00030958,2]
[311111623,1704911448659,-500.0,0.00030958,2]
[311111624,1704911448668,-500.0,0.00030958,2]
[311111625,1704911448677,-500.0,0.00030958,2]
[311111626,1704911448686,-500.0,0.00030958,2]
[311111627,1704911448695,-500.0,0.00030958,2]
[311111628,1704911448704,-500.0,0.00030958,2]
[311111629,1704911448713,-15095.22,0.00030958,2]
[311111630,1704911448723,-500.0,0.00030958,2]
[311111631,1704911448731,-500.0,0.00030958,2]
[311111632,1704911448740,-500.0,0.00030958,2]
[311111633,1704911448749,-500.0,0.00030958,2]
[311111634,1704911448759,-772.21,0.00030958,2]
[311111635,1704911448767,-500.0,0.00030958,2]
[311111636,1704911448778,-1812.72,0.00030958,2]
[311111637,1704911448787,-500.0,0.00030958,2]
[311111638,1704911448796,-945.37,0.00030987,2]
[311111639,1704911448805,-945.37,0.00030987,2]
[311111640,1704911448814,-945.37,0.00030987,2]
[311111641,1704911448823,-945.37,0.00030987,2]
[311111642,1704911448833,-945.37,0.00030987,2]
[311111643,1704911448843,-945.37,0.00030987,2]
[311111644,1704911448852,-945.37,0.00030987,2]
[311111645,1704911448863,-945.37,0.00030987,2]
[311111646,1704911448872,-156.09955365,0.00030999,2]
[311111647,1704911448880,-20585.91157609,0.00031,4]
[311111648,1704911448889,-4215.79787365,0.00031,2]
[311111649,1704911448898,-150.0,0.0003104,2]
[311111650,1704911448907,-500.0,0.00031232,2]
[311111651,1704911448916,-907.54,0.00031232,2]
[311111652,1704911448926,-282.24160124,0.00031232,2]
[311111653,1704911448936,-388.42,0.00031232,2]
[311111654,1704911448946,-921.0,0.00031232,2]
[311111655,1704911448955,-500.0,0.00031232,2]
[311111656,1704911448964,-1303.38,0.00031232,2]
[311111657,1704911448974,-1706.79,0.00031232,2]
[311111658,1704911448982,-2129.51,0.00031232,2]
[311111659,1704911448991,-1612.24,0.00031232,2]
[311111660,1704911449001,-624.66,0.00031232,2]
[311111661,1704911449010,-500.0,0.00031232,2]
[311111662,1704911449019,-797.44,0.00031232,2]
[311111663,1704911449030,-500.0,0.00031232,2]
[311111664,1704911449042,-721.74,0.00031232,2]
[311111665,1704911449051,-609.65,0.00031232,2]
[311111666,1704911449061,-500.0,0.00031232,2]
[311111667,1704911449070,-971.71,0.00031232,2]
[311111668,1704911449079,-6197.91,0.00031232,2]
[311111669,1704911449089,-500.0,0.00031232,2]
[311111670,1704911449098,-500.0,0.00031232,2]
[311111671,1704911449107,-500.0,0.00031232,2]
[311111672,1704911449119,-500.0,0.00031232,2]
[311111673,1704911449128,-704.71,0.00031232,2]
[311111674,1704911449136,-538.82,0.00031232,2]
[311111675,1704911449145,-500.0,0.00031232,2]
[311111676,1704911449154,-500.0,0.00031232,2]
[311111677,1704911449165,-500.0,0.00031232,2]
[311111678,1704911449175,-500.0,0.00031232,2]
[311111679,1704911449184,-500.0,0.00031232,2]
[311111680,1704911449194,-552.86,0.00031232,2]
[311111681,1704911449203,-585.75,0.00031232,2]
[311111682,1704911449212,-500.0,0.00031232,2]
[311111683,1704911449222,-500.0,0.00031232,2]
[311111684,1704911449231,-515.81,0.00031232,2]
[311111685,1704911449240,-500.0,0.00031232,2]
[311111686,1704911449249,-500.0,0.00031232,2]
[311111687,1704911449258,-500.0,0.00031232,2]
[311111688,1704911449267,-500.0,0.00031232,2]
[311111689,1704911449277,-500.0,0.00031232,2]
[311111690,1704911449285,-500.0,0.00031232,2]
[311111691,1704911449295,-15095.22,0.00031232,2]
[311111692,1704911449306,-500.0,0.00031232,2]
[311111693,1704911449316,-500.0,0.00031232,2]
[311111694,1704911449325,-500.0,0.00031232,2]
[311111695,1704911449334,-500.0,0.00031232,2]
[311111696,1704911449344,-772.21,0.00031232,2]
[311111697,1704911449355,-500.0,0.00031232,2]
[311111698,1704911449366,-1812.72,0.00031232,2]
[311111699,1704911449375,-500.0,0.00031232,2]
[311111700,1704911449384,-1500.0,0.000315,2]
[311111701,1704911449393,-500.0,0.00031506,2]
[311111702,1704911449402,-907.54,0.00031506,2]
[311111703,1704911449411,-921.0,0.00031506,2]
[311111704,1704911449421,-500.0,0.00031506,2]
[311111705,1704911449430,-1303.38,0.00031506,2]
[311111706,1704911449439,-1706.79,0.00031506,2]
[311111707,1704911449448,-2129.51,0.00031506,2]
[311111708,1704911449458,-1612.24,0.00031506,2]
[311111709,1704911449470,-624.66,0.00031506,2]
[311111710,1704911449479,-500.0,0.00031506,2]
[311111711,1704911449488,-797.44,0.00031506,2]
[311111712,1704911449497,-500.0,0.00031506,2]
[311111713,1704911449506,-721.74,0.00031506,2]
[311111714,1704911449515,-609.65,0.00031506,2]
[311111715,1704911449525,-500.0,0.00031506,2]
[311111716,1704911449534,-971.71,0.00031506,2]
[311111717,1704911449543,-6197.91,0.00031506,2]
[311111718,1704911449552,-500.0,0.00031506,2]
[311111719,1704911449562,-500.0,0.00031506,2]
[311111720,1704911449572,-500.0,0.00031506,2]
[311111721,1704911449581,-704.71,0.00031506,2]
[311111722,1704911449591,-500.0,0.00031506,2]
[311111723,1704911449600,-500.0,0.00031506,2]
[311111724,1704911449609,-500.0,0.00031506,2]
[311111725,1704911449620,-500.0,0.00031506,2]
[311111726,1704911449629,-552.86,0.00031506,2]
[311111727,1704911449638,-585.75,0.00031506,2]
[311111728,1704911449647,-500.0,0.00031506,2]
[311111729,1704911449656,-500.0,0.00031506,2]
[311111730,1704911449665,-515.81,0.00031506,2]
[311111731,1704911449675,-500.0,0.00031506,2]
[311111732,1704911449685,-500.0,0.00031506,2]
[311111733,1704911449694,-500.0,0.00031506,2]
[311111734,1704911449712,-500.0,0.00031506,2]
[311111735,1704911449725,-500.0,0.00031506,2]
[311111736,1704911449736,-15095.22,0.00031506,2]